[Event "Late-Titled-Tuesday-Blitz-November-28-2023"]
[Site "Chess.com"]
[Date "2023.11.28"]
[Round "11"]
[White "rasmussvane"]
[Black "alexrustemov"]
[Result "0-1"]
[WhiteElo "2951"]
[BlackElo "2853"]
[TimeControl "180+1"]
[EndTime "16:00:16 PST"]
[Termination "alexrustemov won by checkmate"]

1. d4 {[%clk 0:02:53.8]} 1... d5 {[%clk 0:02:58.8]} 2. Nf3 {[%clk 0:02:49.9]}
2... Nf6 {[%clk 0:02:58.4]} 3. c4 {[%clk 0:02:46.7]} 3... c6 {[%clk 0:02:58.6]}
4. Nbd2 {[%clk 0:02:44.7]} 4... Bf5 {[%clk 0:02:58]} 5. Qb3 {[%clk 0:02:42.6]}
5... Qc7 {[%clk 0:02:56.9]} 6. Nh4 {[%clk 0:02:40.9]} 6... Be4 {[%clk
0:02:52.4]} 7. Nxe4 {[%clk 0:02:35.6]} 7... dxe4 {[%clk 0:02:48.7]} 8. g3 {[%clk
0:02:28.3]} 8... e6 {[%clk 0:02:26.2]} 9. Bg5 {[%clk 0:01:59.7]} 9... Nbd7
{[%clk 0:02:20]} 10. Bg2 {[%clk 0:01:56.2]} 10... h6 {[%clk 0:02:18]} 11. Bxf6
{[%clk 0:01:42.6]} 11... Nxf6 {[%clk 0:02:17.9]} 12. Bf1 {[%clk 0:01:40.7]}
12... Qa5+ {[%clk 0:02:14.6]} 13. Kd1 {[%clk 0:01:35.2]} 13... O-O-O {[%clk
0:02:14.5]} 14. e3 {[%clk 0:01:31.9]} 14... c5 {[%clk 0:02:10.3]} 15. d5 {[%clk
0:01:06.9]} 15... g5 {[%clk 0:02:04.5]} 16. Ng2 {[%clk 0:00:58.9]} 16... exd5
{[%clk 0:02:04.7]} 17. Kc2 {[%clk 0:00:54.1]} 17... d4 {[%clk 0:02:02.3]} 18.
Rd1 {[%clk 0:00:48.1]} 18... Ng4 {[%clk 0:01:52.3]} 19. Rd2 {[%clk 0:00:37.6]}
19... Bg7 {[%clk 0:01:50.8]} 20. h3 {[%clk 0:00:23.8]} 20... dxe3 {[%clk
0:01:36.7]} 21. Rxd8+ {[%clk 0:00:14.6]} 21... Rxd8 {[%clk 0:01:37.6]} 22. hxg4
{[%clk 0:00:14.7]} 22... Qd2+ {[%clk 0:01:34.2]} 23. Kb1 {[%clk 0:00:15]} 23...
Qxf2 {[%clk 0:01:19.9]} 24. Qc2 {[%clk 0:00:13.5]} 24... Rd1+ {[%clk 0:01:19.2]}
25. Qxd1 {[%clk 0:00:12.6]} 25... Qxb2# {[%clk 0:01:18.9]} 0-1

[Event "Late-Titled-Tuesday-Blitz-November-28-2023"]
[Site "Chess.com"]
[Date "2023.11.28"]
[Round "11"]
[White "KorolDimitriy75"]
[Black "gabduschew"]
[Result "0-1"]
[WhiteElo "2297"]
[BlackElo "2435"]
[TimeControl "180+1"]
[EndTime "16:00:43 PST"]
[Termination "gabduschew won on time"]

1. d4 {[%clk 0:03:00.9]} 1... c6 {[%clk 0:02:58.3]} 2. c4 {[%clk 0:03:01.1]}
2... Qa5+ {[%clk 0:02:56.6]} 3. Nc3 {[%clk 0:03:00.4]} 3... g5 {[%clk
0:02:56.1]} 4. Qd3 {[%clk 0:02:16.6]} 4... Bg7 {[%clk 0:02:51.5]} 5. h3 {[%clk
0:02:06.9]} 5... d6 {[%clk 0:02:49.1]} 6. Nf3 {[%clk 0:02:02.4]} 6... h6 {[%clk
0:02:48.7]} 7. Bd2 {[%clk 0:01:57.3]} 7... Nd7 {[%clk 0:02:42.8]} 8. e4 {[%clk
0:01:24]} 8... Qb6 {[%clk 0:02:30.5]} 9. b3 {[%clk 0:01:00.9]} 9... Nf8 {[%clk
0:02:21]} 10. Be2 {[%clk 0:00:54.7]} 10... g4 {[%clk 0:02:18.7]} 11. hxg4 {[%clk
0:00:52]} 11... Bxg4 {[%clk 0:02:19.6]} 12. Be3 {[%clk 0:00:47.6]} 12... Qa5
{[%clk 0:02:17.1]} 13. Rc1 {[%clk 0:00:38.6]} 13... h5 {[%clk 0:02:05]} 14. O-O
{[%clk 0:00:26.4]} 14... h4 {[%clk 0:02:00.8]} 15. d5 {[%clk 0:00:16.5]} 15...
Bxf3 {[%clk 0:01:50.6]} 16. Bxf3 {[%clk 0:00:16.2]} 16... Nd7 {[%clk 0:01:50.5]}
17. Bd2 {[%clk 0:00:08.1]} 17... h3 {[%clk 0:01:42.9]} 18. g3 {[%clk 0:00:08]}
18... h2+ {[%clk 0:01:37.2]} 19. Kh1 {[%clk 0:00:07.8]} 19... Ngf6 {[%clk
0:01:33.8]} 20. Bg2 {[%clk 0:00:07.1]} 20... Ng4 {[%clk 0:01:18.2]} 21. f4
{[%clk 0:00:04.7]} 21... Qb6 {[%clk 0:01:14.4]} 22. Qe2 {[%clk 0:00:04.3]} 22...
f5 {[%clk 0:01:05.6]} 23. exf5 {[%clk 0:00:02.3]} 23... Ndf6 {[%clk 0:01:05.7]}
0-1

[Event "Late-Titled-Tuesday-Blitz-November-28-2023"]
[Site "Chess.com"]
[Date "2023.11.28"]
[Round "11"]
[White "Msb2"]
[Black "Hikaru"]
[Result "1/2-1/2"]
[WhiteElo "3052"]
[BlackElo "3226"]
[TimeControl "180+1"]
[EndTime "16:00:47 PST"]
[Termination "Game drawn by repetition"]

1. d4 {[%clk 0:03:00.9]} 1... g6 {[%clk 0:02:55.1]} 2. c4 {[%clk 0:03:01]} 2...
Bg7 {[%clk 0:02:54.3]} 3. e4 {[%clk 0:03:01.5]} 3... d6 {[%clk 0:02:53.7]} 4.
Nc3 {[%clk 0:03:02.1]} 4... a6 {[%clk 0:02:51.9]} 5. Be3 {[%clk 0:02:56.9]} 5...
Nf6 {[%clk 0:02:46.3]} 6. Be2 {[%clk 0:02:56.7]} 6... c6 {[%clk 0:02:41.3]} 7.
Nf3 {[%clk 0:02:47.9]} 7... b5 {[%clk 0:02:39.5]} 8. a3 {[%clk 0:02:47.5]} 8...
Bg4 {[%clk 0:02:36.2]} 9. e5 {[%clk 0:02:35.3]} 9... Nfd7 {[%clk 0:02:29.8]} 10.
exd6 {[%clk 0:02:20.4]} 10... exd6 {[%clk 0:02:29.9]} 11. O-O {[%clk 0:02:14.2]}
11... O-O {[%clk 0:02:28.9]} 12. c5 {[%clk 0:01:59.3]} 12... dxc5 {[%clk
0:02:17.4]} 13. dxc5 {[%clk 0:02:00.2]} 13... a5 {[%clk 0:02:17.8]} 14. h3
{[%clk 0:01:58]} 14... Bxf3 {[%clk 0:02:17.8]} 15. Bxf3 {[%clk 0:01:58.9]} 15...
Ne5 {[%clk 0:02:12.3]} 16. Be2 {[%clk 0:01:58.6]} 16... Nbd7 {[%clk 0:01:58.9]}
17. Qc2 {[%clk 0:01:58.5]} 17... f5 {[%clk 0:01:57]} 18. Rad1 {[%clk 0:01:53.9]}
18... f4 {[%clk 0:01:54.1]} 19. Bc1 {[%clk 0:01:34]} 19... f3 {[%clk 0:01:54.3]}
20. gxf3 {[%clk 0:01:23.6]} 20... Nxf3+ {[%clk 0:01:25.2]} 21. Bxf3 {[%clk
0:01:23.8]} 21... Rxf3 {[%clk 0:01:26.1]} 22. Qe4 {[%clk 0:01:21]} 22... Rf7
{[%clk 0:01:19.1]} 23. Qxc6 {[%clk 0:01:21]} 23... Bxc3 {[%clk 0:00:42.6]} 24.
bxc3 {[%clk 0:01:19.1]} 24... Qc8 {[%clk 0:00:43.2]} 25. Qxb5 {[%clk 0:01:14.6]}
25... Ne5 {[%clk 0:00:38.1]} 26. f4 {[%clk 0:00:58.6]} 26... Qxh3 {[%clk
0:00:33.3]} 27. fxe5 {[%clk 0:00:56.3]} 27... Qg3+ {[%clk 0:00:10]} 28. Kh1
{[%clk 0:00:56.4]} 28... Qh3+ {[%clk 0:00:10.1]} 29. Kg1 {[%clk 0:00:57.1]}
29... Qg3+ {[%clk 0:00:11]} 30. Kh1 {[%clk 0:00:57.6]} 30... Qh3+ {[%clk
0:00:11.9]} 31. Kg1 {[%clk 0:00:58.3]} 1/2-1/2

[Event "Late-Titled-Tuesday-Blitz-November-28-2023"]
[Site "Chess.com"]
[Date "2023.11.28"]
[Round "11"]
[White "JaackCamel"]
[Black "jinxy2009"]
[Result "1-0"]
[WhiteElo "2101"]
[BlackElo "2271"]
[TimeControl "180+1"]
[EndTime "16:01:02 PST"]
[Termination "JaackCamel won by resignation"]

1. d4 {[%clk 0:02:47.4]} 1... d5 {[%clk 0:02:52.2]} 2. c4 {[%clk 0:02:47]} 2...
e6 {[%clk 0:02:50.2]} 3. Nc3 {[%clk 0:02:46.5]} 3... Nf6 {[%clk 0:02:49.8]} 4.
cxd5 {[%clk 0:02:46.3]} 4... exd5 {[%clk 0:02:49.2]} 5. Bg5 {[%clk 0:02:45.9]}
5... Be7 {[%clk 0:02:42.5]} 6. e3 {[%clk 0:02:42.7]} 6... h6 {[%clk 0:02:37.2]}
7. Bh4 {[%clk 0:02:42.1]} 7... c6 {[%clk 0:02:37.3]} 8. Bd3 {[%clk 0:02:41.8]}
8... O-O {[%clk 0:02:36.9]} 9. Nge2 {[%clk 0:02:40.9]} 9... Ne8 {[%clk
0:02:36.9]} 10. Bg3 {[%clk 0:02:39]} 10... Nd6 {[%clk 0:02:37.1]} 11. O-O {[%clk
0:02:37.6]} 11... Re8 {[%clk 0:02:37.6]} 12. Qc2 {[%clk 0:02:36.5]} 12... Bf8
{[%clk 0:02:37.4]} 13. h3 {[%clk 0:02:26.1]} 13... Nd7 {[%clk 0:02:36.9]} 14.
Rad1 {[%clk 0:02:16.6]} 14... Nf6 {[%clk 0:02:26.5]} 15. Nf4 {[%clk 0:02:10.7]}
15... Nde4 {[%clk 0:02:13.7]} 16. Bxe4 {[%clk 0:02:02.9]} 16... Nxe4 {[%clk
0:02:12.1]} 17. Nxe4 {[%clk 0:02:00.7]} 17... dxe4 {[%clk 0:02:13]} 18. d5
{[%clk 0:01:55.9]} 18... cxd5 {[%clk 0:02:11.5]} 19. Nxd5 {[%clk 0:01:53.5]}
19... Bf5 {[%clk 0:01:03.6]} 20. Nc7 {[%clk 0:01:41.8]} 20... Qc8 {[%clk
0:01:00.4]} 21. Qa4 {[%clk 0:01:32.3]} 21... Rd8 {[%clk 0:00:18]} 22. Rxd8
{[%clk 0:01:25]} 22... Qxd8 {[%clk 0:00:18.9]} 23. Nxa8 {[%clk 0:01:24.8]} 23...
Qxa8 {[%clk 0:00:19.8]} 24. Rd1 {[%clk 0:01:18.9]} 24... Qc8 {[%clk 0:00:19.2]}
25. Qxa7 {[%clk 0:01:13.1]} 25... Qc2 {[%clk 0:00:16.8]} 26. Qd4 {[%clk
0:01:08.5]} 26... Kh7 {[%clk 0:00:15.9]} 27. Rd2 {[%clk 0:01:06.8]} 27... Qc1+
{[%clk 0:00:15.5]} 28. Kh2 {[%clk 0:01:02.7]} 28... Bc5 {[%clk 0:00:14.9]} 29.
Qd8 {[%clk 0:00:57.8]} 29... Qc4 {[%clk 0:00:12.8]} 30. Qd5 {[%clk 0:00:54.4]}
30... Be6 {[%clk 0:00:07.5]} 31. Qxc4 {[%clk 0:00:53.4]} 31... Bxc4 {[%clk
0:00:08.4]} 32. Rc2 {[%clk 0:00:53.8]} 1-0

[Event "Late-Titled-Tuesday-Blitz-November-28-2023"]
[Site "Chess.com"]
[Date "2023.11.28"]
[Round "11"]
[White "melissa_guez"]
[Black "TreinadorBR"]
[Result "0-1"]
[WhiteElo "2241"]
[BlackElo "2352"]
[TimeControl "180+1"]
[EndTime "16:01:03 PST"]
[Termination "TreinadorBR won on time"]

1. e4 {[%clk 0:02:53]} 1... c5 {[%clk 0:02:59.5]} 2. Nf3 {[%clk 0:02:53.5]} 2...
d6 {[%clk 0:03:00]} 3. d4 {[%clk 0:02:53.9]} 3... cxd4 {[%clk 0:03:00.9]} 4.
Nxd4 {[%clk 0:02:54.4]} 4... Nf6 {[%clk 0:03:01.8]} 5. Nc3 {[%clk 0:02:54.1]}
5... a6 {[%clk 0:03:02.7]} 6. Bc4 {[%clk 0:02:53.9]} 6... e6 {[%clk 0:03:02.8]}
7. Bb3 {[%clk 0:02:53.7]} 7... Nbd7 {[%clk 0:03:02.6]} 8. O-O {[%clk 0:02:54.1]}
8... Nc5 {[%clk 0:03:03.3]} 9. Qf3 {[%clk 0:02:47.4]} 9... b5 {[%clk 0:03:02.1]}
10. Bg5 {[%clk 0:02:12.9]} 10... Bb7 {[%clk 0:03:00.7]} 11. Rfe1 {[%clk
0:02:11.2]} 11... Nxb3 {[%clk 0:02:57]} 12. axb3 {[%clk 0:02:10.7]} 12... Be7
{[%clk 0:02:57.3]} 13. Qg3 {[%clk 0:02:05.7]} 13... O-O {[%clk 0:02:55]} 14. Bh6
{[%clk 0:02:00.2]} 14... Ne8 {[%clk 0:02:54.4]} 15. Rad1 {[%clk 0:01:17.3]}
15... Qc7 {[%clk 0:02:53.1]} 16. Nd5 {[%clk 0:00:55.7]} 16... exd5 {[%clk
0:02:44.5]} 17. Nf5 {[%clk 0:00:55.4]} 17... Bf6 {[%clk 0:02:43.4]} 18. exd5
{[%clk 0:00:54.5]} 18... Kh8 {[%clk 0:02:41.4]} 19. Bf4 {[%clk 0:00:53.1]} 19...
Rd8 {[%clk 0:02:33.1]} 20. c3 {[%clk 0:00:51.6]} 20... g6 {[%clk 0:02:24.6]} 21.
Bh6 {[%clk 0:00:48.9]} 21... Rg8 {[%clk 0:02:17.2]} 22. Nd4 {[%clk 0:00:39.1]}
22... Ng7 {[%clk 0:02:11.1]} 23. Qf4 {[%clk 0:00:38.3]} 23... Be5 {[%clk
0:02:09.1]} 24. Qf3 {[%clk 0:00:37.6]} 24... f5 {[%clk 0:02:01.4]} 25. Qh3
{[%clk 0:00:36.2]} 25... Bxd5 {[%clk 0:01:59.2]} 26. f4 {[%clk 0:00:35.2]} 26...
Bf6 {[%clk 0:01:56.9]} 27. Nxf5 {[%clk 0:00:32.5]} 27... Bxg2 {[%clk 0:01:46.8]}
28. Qxg2 {[%clk 0:00:23.1]} 28... Nxf5 {[%clk 0:01:45.2]} 29. Bg5 {[%clk
0:00:21.6]} 29... Bg7 {[%clk 0:01:41.9]} 30. Kh1 {[%clk 0:00:20.2]} 30... Rde8
{[%clk 0:01:40.7]} 31. Qd5 {[%clk 0:00:16.9]} 31... Ne3 {[%clk 0:01:29.3]} 32.
Rxe3 {[%clk 0:00:15.8]} 32... Rxe3 {[%clk 0:01:30]} 33. f5 {[%clk 0:00:16.4]}
33... gxf5 {[%clk 0:01:25.3]} 34. Bxe3 {[%clk 0:00:15.2]} 34... Be5 {[%clk
0:01:18]} 35. Bd4 {[%clk 0:00:14.9]} 35... Qg7 {[%clk 0:01:15]} 36. Bxe5 {[%clk
0:00:11.3]} 36... dxe5 {[%clk 0:01:15.9]} 37. Qc6 {[%clk 0:00:08.7]} 37... e4
{[%clk 0:01:14.7]} 0-1

[Event "Late-Titled-Tuesday-Blitz-November-28-2023"]
[Site "Chess.com"]
[Date "2023.11.28"]
[Round "11"]
[White "katharinareinecke"]
[Black "expii"]
[Result "1/2-1/2"]
[WhiteElo "2013"]
[BlackElo "2217"]
[TimeControl "180+1"]
[EndTime "16:01:04 PST"]
[Termination "Game drawn by repetition"]

1. d4 {[%clk 0:03:00.9]} 1... d5 {[%clk 0:02:59.7]} 2. c4 {[%clk 0:03:00.7]}
2... e6 {[%clk 0:03:00.1]} 3. Nf3 {[%clk 0:03:00.8]} 3... c5 {[%clk 0:03:00.5]}
4. cxd5 {[%clk 0:02:58.9]} 4... exd5 {[%clk 0:03:01.4]} 5. g3 {[%clk 0:02:58.7]}
5... Nc6 {[%clk 0:03:01.3]} 6. Bg2 {[%clk 0:02:58.4]} 6... Nf6 {[%clk
0:03:01.8]} 7. O-O {[%clk 0:02:58.1]} 7... Be7 {[%clk 0:03:01.1]} 8. Nc3 {[%clk
0:02:57.5]} 8... O-O {[%clk 0:02:55.9]} 9. a3 {[%clk 0:02:53.2]} 9... a6 {[%clk
0:02:51.3]} 10. dxc5 {[%clk 0:02:53]} 10... Bxc5 {[%clk 0:02:47.5]} 11. b4
{[%clk 0:02:53.1]} 11... Be7 {[%clk 0:02:43.9]} 12. e3 {[%clk 0:02:52.6]} 12...
b5 {[%clk 0:02:40.2]} 13. Bb2 {[%clk 0:02:44]} 13... Bg4 {[%clk 0:02:32.3]} 14.
h3 {[%clk 0:02:43.2]} 14... Be6 {[%clk 0:02:26]} 15. Nd4 {[%clk 0:02:42.6]}
15... Nxd4 {[%clk 0:02:24.8]} 16. Qxd4 {[%clk 0:02:42.5]} 16... Rc8 {[%clk
0:02:19.3]} 17. Rac1 {[%clk 0:02:41.3]} 17... Rc4 {[%clk 0:02:18.5]} 18. Qd2
{[%clk 0:02:39.9]} 18... Qd7 {[%clk 0:02:07.2]} 19. Ne2 {[%clk 0:02:39.7]} 19...
Rfc8 {[%clk 0:02:05.7]} 20. Nd4 {[%clk 0:02:39.1]} 20... Rxc1 {[%clk 0:01:42.9]}
21. Rxc1 {[%clk 0:02:38.2]} 21... h6 {[%clk 0:01:41.5]} 22. Kh2 {[%clk
0:02:36.1]} 22... Rc4 {[%clk 0:01:10.5]} 23. Nxe6 {[%clk 0:02:32.1]} 23... Qxe6
{[%clk 0:01:08.8]} 24. Bxf6 {[%clk 0:02:28.9]} 24... Qxf6 {[%clk 0:01:00.5]} 25.
Rxc4 {[%clk 0:02:24.1]} 25... dxc4 {[%clk 0:00:48.1]} 26. e4 {[%clk 0:02:22.8]}
26... Bd6 {[%clk 0:00:45.3]} 27. f4 {[%clk 0:02:20.1]} 27... Qg6 {[%clk
0:00:36.6]} 28. e5 {[%clk 0:02:17.1]} 28... Bf8 {[%clk 0:00:36.6]} 29. Qc3
{[%clk 0:02:06.7]} 29... Qd3 {[%clk 0:00:26]} 30. Qxd3 {[%clk 0:02:01]} 30...
cxd3 {[%clk 0:00:26.9]} 31. Bf3 {[%clk 0:02:00.8]} 31... g5 {[%clk 0:00:23.6]}
32. Kg2 {[%clk 0:02:00.5]} 32... a5 {[%clk 0:00:17.9]} 33. bxa5 {[%clk
0:01:58.3]} 33... Bxa3 {[%clk 0:00:17.8]} 34. a6 {[%clk 0:01:58]} 34... Bc5
{[%clk 0:00:17.9]} 35. Kf1 {[%clk 0:01:54.4]} 35... b4 {[%clk 0:00:17.1]} 36.
Bd1 {[%clk 0:01:54]} 36... gxf4 {[%clk 0:00:12.6]} 37. gxf4 {[%clk 0:01:53.8]}
37... Be3 {[%clk 0:00:13.5]} 38. f5 {[%clk 0:01:52.7]} 38... Bd4 {[%clk
0:00:13.6]} 39. e6 {[%clk 0:01:52.7]} 39... fxe6 {[%clk 0:00:12.7]} 40. fxe6
{[%clk 0:01:52.9]} 40... Kf8 {[%clk 0:00:13.2]} 41. Ke1 {[%clk 0:01:52.5]} 41...
Be3 {[%clk 0:00:12.2]} 42. Bb3 {[%clk 0:01:50.5]} 42... Ke7 {[%clk 0:00:12]} 43.
Kd1 {[%clk 0:01:50.6]} 43... Kf6 {[%clk 0:00:11.2]} 44. Bc4 {[%clk 0:01:50.6]}
44... Ke7 {[%clk 0:00:10.5]} 45. Bxd3 {[%clk 0:01:50.2]} 45... Kxe6 {[%clk
0:00:10.5]} 46. Bc4+ {[%clk 0:01:50.5]} 46... Ke7 {[%clk 0:00:10.6]} 47. Ke2
{[%clk 0:01:50.7]} 47... Bc5 {[%clk 0:00:09.8]} 48. Kf3 {[%clk 0:01:50.4]} 48...
Kd6 {[%clk 0:00:08.7]} 49. Kg4 {[%clk 0:01:50.5]} 49... Be3 {[%clk 0:00:08.8]}
50. Kf3 {[%clk 0:01:49.8]} 50... Bc5 {[%clk 0:00:08.4]} 51. Ke2 {[%clk
0:01:49.9]} 51... Kc7 {[%clk 0:00:07.9]} 52. Kd3 {[%clk 0:01:49.8]} 52... Kb6
{[%clk 0:00:08.1]} 53. Ke2 {[%clk 0:01:47.6]} 53... Bf8 {[%clk 0:00:08.1]} 54.
Kd2 {[%clk 0:01:45.2]} 54... Bc5 {[%clk 0:00:08.6]} 55. Kc2 {[%clk 0:01:44.7]}
55... Bf8 {[%clk 0:00:09]} 56. Kb3 {[%clk 0:01:45.1]} 56... Bc5 {[%clk
0:00:09.1]} 57. Kc2 {[%clk 0:01:45.3]} 57... Bd6 {[%clk 0:00:09.7]} 58. Kb3
{[%clk 0:01:45.1]} 58... Bc5 {[%clk 0:00:10.3]} 59. Kc2 {[%clk 0:01:45.4]}
1/2-1/2

[Event "Late-Titled-Tuesday-Blitz-November-28-2023"]
[Site "Chess.com"]
[Date "2023.11.28"]
[Round "11"]
[White "Tomytoteph"]
[Black "mind1mover"]
[Result "1-0"]
[WhiteElo "2629"]
[BlackElo "2739"]
[TimeControl "180+1"]
[EndTime "16:01:12 PST"]
[Termination "Tomytoteph won on time"]

1. e4 {[%clk 0:03:00.9]} 1... Nc6 {[%clk 0:02:54.6]} 2. d4 {[%clk 0:03:00.7]}
2... d6 {[%clk 0:02:54.2]} 3. Nc3 {[%clk 0:03:00.1]} 3... Nf6 {[%clk 0:02:53.8]}
4. Nge2 {[%clk 0:02:59.9]} 4... g6 {[%clk 0:02:37.3]} 5. f3 {[%clk 0:02:59.8]}
5... Bg7 {[%clk 0:02:37.6]} 6. Be3 {[%clk 0:03:00.4]} 6... h5 {[%clk 0:02:37.9]}
7. Qd2 {[%clk 0:03:00.7]} 7... a6 {[%clk 0:02:38.3]} 8. h4 {[%clk 0:02:59.5]}
8... b5 {[%clk 0:02:38.4]} 9. g3 {[%clk 0:02:57.7]} 9... e5 {[%clk 0:02:35.7]}
10. O-O-O {[%clk 0:02:56.9]} 10... Bd7 {[%clk 0:02:19.3]} 11. Kb1 {[%clk
0:02:54.6]} 11... b4 {[%clk 0:02:17.4]} 12. Nd5 {[%clk 0:02:52.7]} 12... Nxd5
{[%clk 0:02:16.6]} 13. exd5 {[%clk 0:02:51.8]} 13... Ne7 {[%clk 0:02:17.5]} 14.
dxe5 {[%clk 0:02:50.8]} 14... dxe5 {[%clk 0:02:12.5]} 15. Bc5 {[%clk 0:02:49.6]}
15... Nf5 {[%clk 0:02:04.5]} 16. Bxb4 {[%clk 0:02:46.5]} 16... Nd6 {[%clk
0:01:59.8]} 17. Nc3 {[%clk 0:02:41.1]} 17... Rb8 {[%clk 0:01:54.1]} 18. Ba3
{[%clk 0:02:40.4]} 18... f5 {[%clk 0:01:40.8]} 19. Bxa6 {[%clk 0:02:28.1]} 19...
Ra8 {[%clk 0:01:27.5]} 20. Be2 {[%clk 0:02:24.7]} 20... Rxa3 {[%clk 0:01:27]}
21. bxa3 {[%clk 0:02:25.6]} 21... O-O {[%clk 0:01:06.3]} 22. a4 {[%clk
0:02:14.2]} 22... e4 {[%clk 0:00:55.3]} 23. Nb5 {[%clk 0:02:00.7]} 23... Bxb5
{[%clk 0:00:43.4]} 24. axb5 {[%clk 0:02:00.6]} 24... Qa8 {[%clk 0:00:32.2]} 25.
Qb4 {[%clk 0:01:54.8]} 25... Rb8 {[%clk 0:00:23.7]} 26. a4 {[%clk 0:01:48.2]}
26... Qa7 {[%clk 0:00:23.3]} 27. g4 {[%clk 0:01:38.5]} 27... Qf2 {[%clk
0:00:19.9]} 28. Rde1 {[%clk 0:01:21.8]} 28... exf3 {[%clk 0:00:17.2]} 29. Rhf1
{[%clk 0:01:22.4]} 29... Qxh4 {[%clk 0:00:14.5]} 30. Bxf3 {[%clk 0:01:22.3]}
30... hxg4 {[%clk 0:00:14.3]} 31. Bg2 {[%clk 0:01:14.6]} 31... Qg3 {[%clk
0:00:14.5]} 32. Re2 {[%clk 0:01:12.3]} 32... f4 {[%clk 0:00:09.5]} 33. Rxf4
{[%clk 0:01:11.5]} 33... Qh2 {[%clk 0:00:02.1]} 34. Rxg4 {[%clk 0:01:06.1]}
34... Qg1+ {[%clk 0:00:02.2]} 35. Re1 {[%clk 0:01:06.6]} 35... Qf2 {[%clk
0:00:02.8]} 36. Rxg6 {[%clk 0:01:05.4]} 36... Kf8 {[%clk 0:00:01.5]} 37. Rf1
{[%clk 0:01:04.4]} 1-0

[Event "Late-Titled-Tuesday-Blitz-November-28-2023"]
[Site "Chess.com"]
[Date "2023.11.28"]
[Round "11"]
[White "OneTrickPony_82"]
[Black "DawnofEpiphany"]
[Result "0-1"]
[WhiteElo "2470"]
[BlackElo "2631"]
[TimeControl "180+1"]
[EndTime "16:01:19 PST"]
[Termination "DawnofEpiphany won by resignation"]

1. d4 {[%clk 0:02:59.5]} 1... d5 {[%clk 0:02:58.9]} 2. c4 {[%clk 0:02:59.7]}
2... c6 {[%clk 0:02:58.1]} 3. Nf3 {[%clk 0:02:59.8]} 3... Nf6 {[%clk 0:02:57.6]}
4. cxd5 {[%clk 0:03:00.4]} 4... cxd5 {[%clk 0:02:57.4]} 5. Nc3 {[%clk
0:03:01.1]} 5... Nc6 {[%clk 0:02:56.6]} 6. Bf4 {[%clk 0:03:01.6]} 6... a6 {[%clk
0:02:54.9]} 7. Qb3 {[%clk 0:03:01.3]} 7... Na5 {[%clk 0:02:48.4]} 8. Qc2 {[%clk
0:03:01.2]} 8... e6 {[%clk 0:02:23.6]} 9. e3 {[%clk 0:03:00.6]} 9... Be7 {[%clk
0:02:23.5]} 10. Bd3 {[%clk 0:03:00.2]} 10... O-O {[%clk 0:02:23.2]} 11. O-O
{[%clk 0:02:59.6]} 11... b5 {[%clk 0:02:23.3]} 12. Ne5 {[%clk 0:02:49.4]} 12...
Bb7 {[%clk 0:02:22.9]} 13. Rfc1 {[%clk 0:02:38.2]} 13... Rc8 {[%clk 0:02:21.7]}
14. Qd1 {[%clk 0:02:35]} 14... Nc4 {[%clk 0:02:19]} 15. Qe2 {[%clk 0:02:33.1]}
15... Qa5 {[%clk 0:02:15.2]} 16. Bg5 {[%clk 0:02:26.9]} 16... Rc7 {[%clk
0:02:00]} 17. a4 {[%clk 0:02:02.3]} 17... b4 {[%clk 0:01:57]} 18. Nd1 {[%clk
0:01:48.9]} 18... Rfc8 {[%clk 0:01:26.3]} 19. f4 {[%clk 0:01:21.9]} 19... b3
{[%clk 0:01:16.9]} 20. Nc3 {[%clk 0:01:17.4]} 20... Nxb2 {[%clk 0:01:05.2]} 21.
Qxb2 {[%clk 0:00:58.5]} 21... Rxc3 {[%clk 0:01:03.9]} 22. Rd1 {[%clk 0:00:46.9]}
22... Qb4 {[%clk 0:00:53]} 23. Qe2 {[%clk 0:00:43.6]} 23... Ne4 {[%clk
0:00:47.9]} 24. Bxe4 {[%clk 0:00:22]} 24... dxe4 {[%clk 0:00:47.6]} 25. Bxe7
{[%clk 0:00:13.4]} 25... Qxe7 {[%clk 0:00:47.4]} 26. Rab1 {[%clk 0:00:09.7]}
26... Bd5 {[%clk 0:00:45]} 27. Qxa6 {[%clk 0:00:09.1]} 27... h5 {[%clk
0:00:40.7]} 28. h3 {[%clk 0:00:08.7]} 28... f6 {[%clk 0:00:39.9]} 29. Rxb3
{[%clk 0:00:05]} 29... Bxb3 {[%clk 0:00:39]} 0-1

[Event "Late-Titled-Tuesday-Blitz-November-28-2023"]
[Site "Chess.com"]
[Date "2023.11.28"]
[Round "11"]
[White "Oleksandr_Bortnyk"]
[Black "jefferyx"]
[Result "0-1"]
[WhiteElo "3072"]
[BlackElo "3016"]
[TimeControl "180+1"]
[EndTime "16:01:26 PST"]
[Termination "jefferyx won by checkmate"]

1. e4 {[%clk 0:03:00.9]} 1... c6 {[%clk 0:02:54.5]} 2. d4 {[%clk 0:02:58.7]}
2... d5 {[%clk 0:02:55]} 3. Nc3 {[%clk 0:02:59.1]} 3... dxe4 {[%clk 0:02:54.1]}
4. Nxe4 {[%clk 0:03:00]} 4... Nf6 {[%clk 0:02:54.3]} 5. Nxf6+ {[%clk 0:02:59.9]}
5... exf6 {[%clk 0:02:55.2]} 6. c3 {[%clk 0:03:00.2]} 6... Bd6 {[%clk 0:02:53]}
7. Bd3 {[%clk 0:03:00.4]} 7... O-O {[%clk 0:02:52.6]} 8. Qc2 {[%clk 0:03:00.7]}
8... Re8+ {[%clk 0:02:53.1]} 9. Ne2 {[%clk 0:03:01.1]} 9... h5 {[%clk
0:02:53.8]} 10. O-O {[%clk 0:03:01.3]} 10... h4 {[%clk 0:02:52.2]} 11. Nf4
{[%clk 0:03:00.7]} 11... Na6 {[%clk 0:02:24.3]} 12. Qd1 {[%clk 0:02:50.3]} 12...
g6 {[%clk 0:02:05.1]} 13. Qf3 {[%clk 0:02:17.2]} 13... Nc7 {[%clk 0:02:01.9]}
14. g3 {[%clk 0:02:12.9]} 14... h3 {[%clk 0:01:52.4]} 15. Bd2 {[%clk 0:02:01.7]}
15... Kg7 {[%clk 0:01:50.9]} 16. Rfe1 {[%clk 0:01:57.1]} 16... Rh8 {[%clk
0:01:46.3]} 17. Re2 {[%clk 0:01:47.1]} 17... Bxf4 {[%clk 0:01:36.8]} 18. Bxf4
{[%clk 0:01:41.4]} 18... Be6 {[%clk 0:01:36.7]} 19. Rae1 {[%clk 0:01:31.1]}
19... Qd7 {[%clk 0:01:23.4]} 20. Bxc7 {[%clk 0:00:47.1]} 20... Qxc7 {[%clk
0:01:24.3]} 21. c4 {[%clk 0:00:32.6]} 21... Rad8 {[%clk 0:01:22.7]} 22. Re4
{[%clk 0:00:28.3]} 22... f5 {[%clk 0:01:15.7]} 23. Rf4 {[%clk 0:00:24.1]} 23...
Rhe8 {[%clk 0:01:03.2]} 24. Re3 {[%clk 0:00:18.6]} 24... b5 {[%clk 0:00:53.5]}
25. b3 {[%clk 0:00:14.2]} 25... Qa5 {[%clk 0:00:43.4]} 26. Bf1 {[%clk
0:00:12.7]} 26... bxc4 {[%clk 0:00:36]} 27. bxc4 {[%clk 0:00:13.6]} 27... Rb8
{[%clk 0:00:31.1]} 28. Rh4 {[%clk 0:00:06.4]} 28... Rb1 {[%clk 0:00:28.3]} 29.
Qf4 {[%clk 0:00:06.9]} 29... Rxf1+ {[%clk 0:00:24.1]} 30. Kxf1 {[%clk
0:00:07.4]} 30... Bxc4+ {[%clk 0:00:25]} 31. Kg1 {[%clk 0:00:07.9]} 31... Qe1+
{[%clk 0:00:24.9]} 32. Rxe1 {[%clk 0:00:07.8]} 32... Rxe1# {[%clk 0:00:25.8]}
0-1